[Event "DFMMLV 2024"]
[Site "Braunfels"]
[Date "2024.05.31"]
[Round "3.3"]
[White "Hrebenshchykova, Yelyzaveta"]
[Black "Novikova, Margarita"]
[Result "1-0"]
[ECO "B01"]
[WhiteElo "2272"]
[BlackElo "1999"]
[Annotator "RC"]
[PlyCount "71"]
[EventDate "2024.05.30"]
[EventType "team-tourn"]
[EventCountry "GER"]
[SourceTitle "playchess.com"]
[Source "ChessBase"]
[SourceQuality "1"]
[TimeControl "40/5400+30:1800+30"]

1. e4 {[%emt 0:00:05]} g6 {[%emt 0:00:20]} 2. d4 {[%emt 0:00:41]} Bg7 {[%emt 0:00:14]} 3. Nf3 {[%emt 0:04:27]} d5 {[%emt 0:03:48]} 4. exd5 {[%emt 0:02:17]} Qxd5 {[%emt 0:01:10]} 5. c4 {[%emt 0:17:37]} Qd8 {[%emt 0:05:58]} 6. Nc3 {[%emt 0:03:14]} Nf6 {[%emt 0:07:02]} 7. h3 {[%emt 0:07:41]} O-O {[%emt 0:03:51]} 8. Bd3 {[%emt 0:00:22]} e5 {[%emt 0:14:20]} 9. dxe5 {[%emt 0:03:15]} Nfd7 {[%emt 0:01:30]} 10. Bg5 {[%emt 0:06:17]} Qe8 {[%emt 0:13:09]} 11. O-O {[%emt 0:01:01]} Nxe5 {[%emt 0:08:46]} 12. Nd5 {[%emt 0:01:48]} Nxd3 {[%emt 0:09:37]} 13. Qxd3 {[%emt 0:01:14]} Qd7 {[%emt 0:02:28]} 14. Bf6 {[%emt 0:01:32]} Qd6 {[%emt 0:11:21]} 15. Qc3 {[%emt 0:03:09]} c6 {[%emt 0:02:22]} 16. Bxg7 {[%emt 0:01:17]} cxd5 {[%emt 0:00:04]} 17. Bxf8 {[%emt 0:01:49]} Qxf8 {[%emt 0:00:04]} 18. cxd5 {[%emt 0:00:03]} Bf5 {[%emt 0:02:45]} 19. Qb3 {[%emt 0:09:13]} b6 {[%emt 0:00:37]} 20. Nd4 {[%emt 0:00:13]} Bd7 {[%emt 0:00:35]} 21. Rac1 {[%emt 0:03:09]} Na6 {[%emt 0:00:35]} 22. Qc4 {[%emt 0:00:48]} Nc5 {[%emt 0:00:29]} 23. b4 {[%emt 0:00:40]} Ne4 {[%emt 0:01:38]} 24. Ne6 {[%emt 0:01:55]} Bxe6 {[%emt 0:01:26]} 25. dxe6 {[%emt 0:00:20]} Ng5 {[%emt 0:01:01]} 26. exf7+ {[%emt 0:00:18]} Qxf7 {[%emt 0:00:46]} 27. Qxf7+ {[%emt 0:03:37]} Nxf7 {[%emt 0:00:42]} 28. Rfd1 {[%emt 0:02:57]} Ng5 {[%emt 0:04:18]} 29. Rd7 {[%emt 0:00:55]} Ne6 {[%emt 0:00:33]} 30. Re1 {[%emt 0:00:32]} Nf8 {[%emt 0:00:29]} 31. Rb7 {[%emt 0:00:15]} g5 {[%emt 0:03:09]} 32. Ree7 {[%emt 0:00:34]} h6 {[%emt 0:00:07]} 33. Rxa7 {[%emt 0:00:34]} Rd8 {[%emt 0:00:11]} 34. Rab7 {[%emt 0:05:00]} Rd1+ {[%emt 0:00:22]} 35. Kh2 {[%emt 0:00:04]} Rd6 {[%emt 0:00:19]} 36. a4 {[%emt 0:00:52]} 1-0

[Event "DFMMLV 2024"]
[Site "Braunfels"]
[Date "2024.05.31"]
[Round "3.4"]
[White "Timofeeva, Galina"]
[Black "Bardorz, Jana"]
[Result "0-1"]
[ECO "A04"]
[WhiteElo "1981"]
[BlackElo "2051"]
[Annotator "NA RC"]
[PlyCount "76"]
[EventDate "2024.05.30"]
[EventType "team-tourn"]
[EventCountry "GER"]
[SourceTitle "playchess.com"]
[Source "ChessBase"]
[SourceQuality "1"]
[TimeControl "40/5400+30:1800+30"]

1. e4 {[%emt 0:00:02]} c5 {[%emt 0:00:22]} 2. Nf3 {[%emt 0:00:11]} d6 {[%emt 0:00:09]} 3. d3 {[%emt 0:00:06]} Nc6 {[%emt 0:01:24]} 4. g3 {[%emt 0:00:08]} g6 {[%emt 0:04:43]} 5. Bg2 {[%emt 0:00:06]} Bg7 {[%emt 0:00:28]} 6. c3 {[%emt 0:00:06]} e6 {[%emt 0:04:19]} 7. O-O {[%emt 0:00:10]} Nge7 {[%emt 0:00:56]} 8. Re1 {[%emt 0:02:56]} O-O {[%emt 0:00:48]} 9. Nbd2 {[%emt 0:00:58]} Qc7 {[%emt 0:10:53]} 10. Nf1 {[%emt 0:02:47]} b6 {[%emt 0:06:02]} 11. h4 {[%emt 0:01:09]} h6 {[%emt 0:06:22]} 12. Bf4 {[%emt 0:08:09]} e5 {[%emt 0:02:09]} 13. Bd2 {[%emt 0:04:13]} Be6 {[%emt 0:02:43]} 14. N3h2 {[%emt 0:13:20]} d5 {[%emt 0:04:50]} 15. Ne3 {[%emt 0:17:02]} Rad8 {[%emt 0:03:43]} 16. c4 {[%emt 0:07:06]} dxe4 {[%emt 0:04:56]} 17. dxe4 {[%emt 0:00:14]} Nd4 {[%emt 0:04:25]} 18. Nd5 {[%emt 0:00:34]} Bxd5 {[%emt 0:01:40]} 19. exd5 {[%emt 0:00:53]} f5 {[%emt 0:04:29]} 20. Nf3 {[%emt 0:03:31]} Kh7 {[%emt 0:02:37]} 21. Nxd4 {[%emt 0:00:58]} cxd4 {[%emt 0:00:57]} 22. Bb4 {[%emt 0:00:36]} Qd7 {[%emt 0:02:15]} 23. Rc1 {[%emt 0:04:48]} Rfe8 {[%emt 0:01:42]} 24. d6 {[%emt 0:05:11]} Nc6 {[%emt 0:04:09]} 25. Ba3 {[%emt 0:01:31]} e4 {[%emt 0:01:12]} 26. c5 {[%emt 0:06:57]} bxc5 {[%emt 0:00:48]} 27. Bxc5 {[%emt 0:00:38]} d3 {[%emt 0:02:55]} 28. b4 {[%emt 0:01:41]} Rc8 {[%emt 0:03:41]} 29. f3 {[%emt 0:06:33]} Be5 {[%emt 0:05:15]} 30. fxe4 {[%emt 0:05:10]} Bxd6 {[%emt 0:01:24]} 31. Re3 {[%emt 0:01:58]} Nxb4 {[%emt 0:03:37]} 32. Bxd6 {[%emt 0:02:58]} Qxd6 {[%emt 0:01:31]} 33. Kh2 {[%emt 0:02:01]} Rxc1 {[%emt 0:01:35]} 34. Qxc1 {[%emt 0:00:01]} d2 {[%emt 0:01:28]} 35. Qd1 {[%emt 0:00:01]} f4 {[%emt 0:05:01]} 36. e5 {[%emt 0:00:57]} fxg3+ {[%emt 0:00:59]} 37. Kh1 {[%emt 0:00:15]} Rxe5 {[%emt 0:00:45]} 38. Be4 {[%emt 0:01:20]} Rxe4 {[%emt 0:01:04]} 0-1

[Event "DFMMLV 2024"]
[Site "Braunfels"]
[Date "2024.05.31"]
[Round "3.5"]
[White "Vidonyak, Nellya"]
[Black "Valkova, Angelika"]
[Result "0-1"]
[ECO "E14"]
[WhiteElo "2098"]
[BlackElo "2004"]
[Annotator "RC"]
[PlyCount "120"]
[EventDate "2024.05.30"]
[EventType "team-tourn"]
[EventCountry "GER"]
[SourceTitle "playchess.com"]
[Source "ChessBase"]
[SourceQuality "1"]
[TimeControl "40/5400+30:1800+30"]

1. d4 {[%emt 0:00:02]} d5 {[%emt 0:00:06]} 2. Nf3 {[%emt 0:01:07]} Nf6 {[%emt 0:00:08]} 3. e3 {[%emt 0:00:16]} e6 {[%emt 0:00:59]} 4. Bd3 {[%emt 0:00:50]} b6 {[%emt 0:03:20]} 5. O-O {[%emt 0:01:39]} Bd6 {[%emt 0:03:05]} 6. b3 {[%emt 0:02:30]} O-O {[%emt 0:00:57]} 7. c4 {[%emt 0:01:56]} Bb7 {[%emt 0:02:55]} 8. Ne5 {[%emt 0:07:24]} Nbd7 {[%emt 0:04:36]} 9. Bb2 {[%emt 0:01:13]} dxc4 {[%emt 0:04:23]} 10. Nxc4 {[%emt 0:05:40]} Be7 {[%emt 0:00:08]} 11. Nbd2 {[%emt 0:02:29]} c5 {[%emt 0:00:26]} 12. Nf3 {[%emt 0:07:15]} cxd4 {[%emt 0:02:17]} 13. Bxd4 {[%emt 0:03:38]} Nc5 {[%emt 0:01:38]} 14. Bc2 {[%emt 0:01:55]} Qd5 {[%emt 0:01:29]} 15. Nce5 {[%emt 0:02:55]} Ba6 {[%emt 0:08:26]} 16. Re1 {[%emt 0:04:39]} Nce4 {[%emt 0:00:08]} 17. Bd3 {[%emt 0:01:53]} Bxd3 {[%emt 0:02:10]} 18. Qxd3 {[%emt 0:00:03]} Rac8 {[%emt 0:00:54]} 19. Rac1 {[%emt 0:06:58]} Qb7 {[%emt 0:09:06]} 20. Red1 {[%emt 0:07:47]} Ba3 {[%emt 0:03:10]} 21. Rxc8 {[%emt 0:00:46]} Rxc8 {[%emt 0:00:09]} 22. Nc4 {[%emt 0:03:48]} Be7 {[%emt 0:00:34]} 23. a4 {[%emt 0:07:56]} Ng4 {[%emt 0:08:40]} 24. Rf1 {[%emt 0:01:45]} Qd5 {[%emt 0:02:42]} 25. h3 {[%emt 0:02:27]} Ngf6 {[%emt 0:00:45]} 26. Rd1 {[%emt 0:03:15]} Nc5 {[%emt 0:00:33]} 27. Qb1 {[%emt 0:03:52]} Qe4 {[%emt 0:06:29]} 28. Nfe5 {[%emt 0:05:03]} Qxb1 {[%emt 0:05:22]} 29. Rxb1 {[%emt 0:00:03]} Nfe4 {[%emt 0:00:58]} 30. f3 {[%emt 0:02:53]} Ng3 {[%emt 0:04:42]} 31. Bxc5 {[%emt 0:04:29]} Rxc5 {[%emt 0:00:50]} 32. e4 {[%emt 0:02:17]} Rc7 {[%emt 0:10:20]} 33. Rd1 {[%emt 0:00:55]} f6 {[%emt 0:00:51]} 34. Kh2 {[%emt 0:03:34]} Ne2 {[%emt 0:01:56]} 35. Ng4 {[%emt 0:00:48]} h5 {[%emt 0:03:29]} 36. Nge3 {[%emt 0:00:23]} h4 {[%emt 0:02:13]} 37. Nf1 {[%emt 0:01:23]} Kf8 {[%emt 0:00:49]} 38. e5 {[%emt 0:00:36]} fxe5 {[%emt 0:04:47]} 39. Re1 {[%emt 0:00:29]} Nd4 {[%emt 0:00:47]} 40. Nxe5 {[%emt 0:00:40]} Bd6 {[%emt 0:01:29]} 41. Kh1 {[%emt 0:07:31]} Bxe5 {[%emt 0:01:59]} 42. Rxe5 {[%emt 0:00:13]} Nxb3 {[%emt 0:00:10]} 43. g4 {[%emt 0:07:12]} hxg3 {[%emt 0:01:13]} 44. Nxg3 {[%emt 0:00:03]} Rc1+ {[%emt 0:01:27]} 45. Kg2 {[%emt 0:01:25]} Rc2+ {[%emt 0:00:10]} 46. Kg1 {[%emt 0:00:29]} Nc5 {[%emt 0:02:21]} 47. a5 {[%emt 0:02:46]} bxa5 {[%emt 0:07:14]} 48. Ne4 {[%emt 0:00:35]} Nxe4 {[%emt 0:06:13]} 49. fxe4 {[%emt 0:00:34]} a4 {[%emt 0:01:50]} 50. Ra5 {[%emt 0:00:50]} Ra2 {[%emt 0:00:18]} 51. Rxa7 {[%emt 0:00:13]} a3 {[%emt 0:00:43]} 52. h4 {[%emt 0:04:04]} Kg8 {[%emt 0:01:13]} 53. h5 {[%emt 0:02:17]} Kh7 {[%emt 0:00:06]} 54. Ra6 {[%emt 0:00:08]} Kh6 {[%emt 0:02:54]} 55. Rxe6+ {[%emt 0:02:13]} Kxh5 {[%emt 0:00:06]} 56. Ra6 {[%emt 0:00:50]} Kg4 {[%emt 0:00:22]} 57. e5 {[%emt 0:00:51]} Kf5 {[%emt 0:00:55]} 58. e6 {[%emt 0:03:00]} Kf6 {[%emt 0:00:04]} 59. Ra7 {[%emt 0:01:01]} Kxe6 {[%emt 0:00:08]} 60. Rxg7 {[%emt 0:00:20]} Rb2 {[%emt 0:00:11]} 0-1

[Event "DFMMLV 2024"]
[Site "Braunfels"]
[Date "2024.05.31"]
[Round "3.6"]
[White "Gheng, Simona"]
[Black "Wagner, Margarethe"]
[Result "0-1"]
[ECO "B90"]
[WhiteElo "1982"]
[BlackElo "2011"]
[Annotator "RC"]
[PlyCount "136"]
[EventDate "2024.05.30"]
[EventType "team-tourn"]
[EventCountry "GER"]
[SourceTitle "playchess.com"]
[Source "ChessBase"]
[SourceQuality "1"]
[TimeControl "40/5400+30:1800+30"]

1. e4 {[%emt 0:00:04]} c5 {[%emt 0:00:07]} 2. Nf3 {[%emt 0:00:13]} d6 {[%emt 0:00:07]} 3. d4 {[%emt 0:00:06]} cxd4 {[%emt 0:00:06]} 4. Nxd4 {[%emt 0:00:06]} Nf6 {[%emt 0:00:07]} 5. Nc3 {[%emt 0:00:07]} a6 {[%emt 0:00:10]} 6. a4 {[%emt 0:00:34]} e5 {[%emt 0:01:14]} 7. Nf3 {[%emt 0:00:52]} Be7 {[%emt 0:01:10]} 8. Bc4 {[%emt 0:02:24]} O-O {[%emt 0:00:42]} 9. O-O {[%emt 0:01:35]} Be6 {[%emt 0:02:00]} 10. Bxe6 {[%emt 0:03:00]} fxe6 {[%emt 0:00:08]} 11. Ng5 {[%emt 0:00:25]} Qd7 {[%emt 0:01:32]} 12. Qd3 {[%emt 0:01:13]} h6 {[%emt 0:16:43]} 13. Nf3 {[%emt 0:03:44]} Nc6 {[%emt 0:00:16]} 14. Rd1 {[%emt 0:03:52]} Qe8 {[%emt 0:13:58]} 15. Ne2 {[%emt 0:09:50]} Rc8 {[%emt 0:06:43]} 16. Ng3 {[%emt 0:04:54]} Qf7 {[%emt 0:06:35]} 17. Qb3 {[%emt 0:05:51]} Rc7 {[%emt 0:06:49]} 18. Be3 {[%emt 0:05:31]} Nd7 {[%emt 0:15:27]} 19. Bb6 {[%emt 0:02:59]} Nxb6 {[%emt 0:00:11]} 20. Qxb6 {[%emt 0:00:06]} Rfc8 {[%emt 0:00:44]} 21. c4 {[%emt 0:02:09]} Nb8 {[%emt 0:04:23]} 22. b3 {[%emt 0:01:21]} Nd7 {[%emt 0:00:55]} 23. Qe3 {[%emt 0:03:41]} Rc6 {[%emt 0:01:36]} 24. h3 {[%emt 0:03:15]} a5 {[%emt 0:03:22]} 25. Ne2 {[%emt 0:01:53]} Bd8 {[%emt 0:00:09]} 26. Nc3 {[%emt 0:04:51]} Bb6 {[%emt 0:00:13]} 27. Qe2 {[%emt 0:00:44]} Rf8 {[%emt 0:04:18]} 28. Nb5 {[%emt 0:01:37]} Bc5 {[%emt 0:00:09]} 29. Rd3 {[%emt 0:01:23]} Nf6 {[%emt 0:02:39]} 30. Rad1 {[%emt 0:00:41]} Ne8 {[%emt 0:01:15]} 31. R1d2 {[%emt 0:03:57]} Bb4 {[%emt 0:01:37]} 32. Ra2 {[%emt 0:00:21]} Qf4 {[%emt 0:04:20]} 33. Nd2 {[%emt 0:01:45]} Nf6 {[%emt 0:02:17]} 34. Rf3 {[%emt 0:00:39]} Qg5 {[%emt 0:00:40]} 35. Nf1 {[%emt 0:05:08]} Nh5 {[%emt 0:01:42]} 36. Rxf8+ {[%emt 0:03:33]} Kxf8 {[%emt 0:00:02]} 37. g3 {[%emt 0:00:32]} Nf6 {[%emt 0:01:19]} 38. Kg2 {[%emt 0:02:34]} Ke7 {[%emt 0:00:37]} 39. Ra1 {[%emt 0:01:18]} Qg6 {[%emt 0:00:54]} 40. f3 {[%emt 0:00:23]} Nh5 {[%emt 0:01:34]} 41. Kh2 {[%emt 0:31:00]} Bc5 {[%emt 0:02:00]} 42. Qg2 {[%emt 0:00:00]} Qf7 {[%emt 0:01:22]} 43. Rd1 {[%emt 0:00:00]} g5 {[%emt 0:01:45]} 44. Rd3 {[%emt 0:00:00]} Nf6 {[%emt 0:01:44]} 45. Qe2 {[%emt 0:00:00]} Qg6 {[%emt 0:03:37]} 46. Ne3 {[%emt 0:00:00]} h5 {[%emt 0:02:42]} 47. Ng2 {[%emt 0:00:00]} g4 {[%emt 0:09:03]} 48. Nh4 {[%emt 0:00:00]} Qg5 {[%emt 0:01:32]} 49. Qf1 {[%emt 0:00:00]} gxh3 {[%emt 0:02:19]} 50. Qxh3 {[%emt 0:00:00]} Qc1 {[%emt 0:02:37]} 51. Qg2 {[%emt 0:00:00]} Qb1 {[%emt 0:01:57]} 52. Rc3 {[%emt 0:02:52]} Bd4 {[%emt 0:01:26]} 53. Nxd4 {[%emt 0:02:12]} exd4 {[%emt 0:00:05]} 54. Qc2 {[%emt 0:01:07]} Qxc2+ {[%emt 0:00:43]} 55. Rxc2 {[%emt 0:00:05]} Rb6 {[%emt 0:00:10]} 56. Rb2 {[%emt 0:02:00]} Nd7 {[%emt 0:00:32]} 57. Ng6+ {[%emt 0:02:27]} Kf7 {[%emt 0:00:36]} 58. Nf4 {[%emt 0:00:07]} Nc5 {[%emt 0:00:24]} 59. Kg2 {[%emt 0:00:40]} Rxb3 {[%emt 0:00:35]} 60. Rxb3 {[%emt 0:00:07]} Nxb3 {[%emt 0:00:02]} 61. Nxh5 {[%emt 0:00:56]} Nc5 {[%emt 0:00:29]} 62. Kf2 {[%emt 0:04:58]} Nxa4 {[%emt 0:00:12]} 63. Nf4 {[%emt 0:00:29]} Nb2 {[%emt 0:00:57]} 64. Ke2 {[%emt 0:00:39]} e5 {[%emt 0:00:12]} 65. Nd5 {[%emt 0:02:15]} a4 {[%emt 0:01:42]} 66. f4 {[%emt 0:02:39]} Nxc4 {[%emt 0:01:59]} 67. f5 {[%emt 0:00:23]} b5 {[%emt 0:01:20]} 68. g4 {[%emt 0:00:25]} Ne3 {[%emt 0:00:27]} 0-1

[Event "DFMMLV 2024"]
[Site "Braunfels"]
[Date "2024.05.31"]
[Round "3.7"]
[White "Horvath, Maria"]
[Black "Heil, Marina"]
[Result "1-0"]
[ECO "A84"]
[WhiteElo "1929"]
[BlackElo "1900"]
[Annotator "NA RC"]
[PlyCount "95"]
[EventDate "2024.05.30"]
[EventType "team-tourn"]
[EventCountry "GER"]
[SourceTitle "playchess.com"]
[Source "ChessBase"]
[SourceQuality "1"]
[TimeControl "40/5400+30:1800+30"]

1. d4 {[%emt 0:00:06]} f5 {[%emt 0:00:14]} 2. Nf3 {[%emt 0:00:15]} e6 {[%emt 0:00:35]} 3. c4 {[%emt 0:00:27]} Nf6 {[%emt 0:00:26]} 4. e3 {[%emt 0:00:48]} b6 {[%emt 0:00:26]} 5. Bd3 {[%emt 0:03:19]} Bb7 {[%emt 0:00:18]} 6. O-O {[%emt 0:00:05]} Be7 {[%emt 0:01:31]} 7. b3 {[%emt 0:00:41]} O-O {[%emt 0:00:27]} 8. Bb2 {[%emt 0:00:29]} Qe8 {[%emt 0:00:45]} 9. Nc3 {[%emt 0:02:47]} Qh5 {[%emt 0:03:50]} 10. Be2 {[%emt 0:03:53]} Qh6 {[%emt 0:01:59]} 11. d5 {[%emt 0:05:35]} Bd6 {[%emt 0:05:21]} 12. Nb5 {[%emt 0:04:47]} exd5 {[%emt 0:09:35]} 13. Nxd6 {[%emt 0:00:21]} cxd6 {[%emt 0:00:12]} 14. cxd5 {[%emt 0:03:48]} Nxd5 {[%emt 0:00:42]} 15. Bc4 {[%emt 0:00:37]} Qe6 {[%emt 0:05:19]} 16. Qd4 {[%emt 0:11:51]} Qf7 {[%emt 0:10:06]} 17. Rad1 {[%emt 0:06:45]} Kh8 {[%emt 0:17:26]} 18. Bxd5 {[%emt 0:00:31]} Nc6 {[%emt 0:00:52]} 19. Bxf7 {[%emt 0:04:31]} Nxd4 {[%emt 0:00:08]} 20. Rxd4 {[%emt 0:00:13]} Rxf7 {[%emt 0:00:06]} 21. Rxd6 {[%emt 0:01:05]} Bxf3 {[%emt 0:01:37]} 22. gxf3 {[%emt 0:00:05]} Rc8 {[%emt 0:02:23]} 23. Rc1 {[%emt 0:01:42]} Rxc1+ 24. Bxc1 {[%emt 0:00:01]} Kg8 {[%emt 0:03:17]} 25. Bb2 {[%emt 0:01:24]} Kf8 {[%emt 0:00:39]} 26. Be5 {[%emt 0:04:06]} Ke7 {[%emt 0:02:51]} 27. Rd4 {[%emt 0:03:24]} Ke6 {[%emt 0:02:59]} 28. f4 {[%emt 0:00:23]} g6 {[%emt 0:00:53]} 29. Rd6+ {[%emt 0:02:06]} Ke7 {[%emt 0:00:10]} 30. a4 {[%emt 0:01:31]} Rf8 {[%emt 0:00:32]} 31. Rd3 {[%emt 0:01:03]} Rc8 {[%emt 0:02:39]} 32. Rc3 {[%emt 0:00:07]} Rc6 {[%emt 0:01:07]} 33. Rxc6 {[%emt 0:00:53]} dxc6 {[%emt 0:00:06]} 34. Kf1 {[%emt 0:01:35]} Ke6 {[%emt 0:00:13]} 35. Ke2 {[%emt 0:00:07]} Kd5 {[%emt 0:00:29]} 36. Kd3 {[%emt 0:00:14]} a6 {[%emt 0:02:42]} 37. f3 {[%emt 0:01:56]} b5 {[%emt 0:05:01]} 38. a5 {[%emt 0:02:07]} c5 {[%emt 0:01:16]} 39. e4+ {[%emt 0:00:31]} Ke6 {[%emt 0:01:02]} 40. Bb8 {[%emt 0:05:04]} Kd7 {[%emt 0:02:01]} 41. Kc3 {[%emt 0:30:56]} Kc6 {[%emt 0:31:05]} 42. b4 {[%emt 0:02:45]} c4 {[%emt 0:00:22]} 43. Ba7 {[%emt 0:02:11]} Kb7 {[%emt 0:01:53]} 44. Bc5 {[%emt 0:00:14]} Kc6 {[%emt 0:00:09]} 45. Kd4 {[%emt 0:02:25]} Kd7 {[%emt 0:02:04]} 46. Kd5 {[%emt 0:02:01]} Kc7 {[%emt 0:03:02]} 47. Bd4 {[%emt 0:00:44]} Kd7 {[%emt 0:00:21]} 48. Bc3 {[%emt 0:00:09]} 1-0

[Event "DFMMLV 2024"]
[Site "Braunfels"]
[Date "2024.05.31"]
[Round "3.9"]
[White "Rieseler, Caroline"]
[Black "Voicu-Jagodzinsky, Carmen"]
[Result "0-1"]
[ECO "B32"]
[WhiteElo "2075"]
[BlackElo "2228"]
[Annotator "RC"]
[PlyCount "88"]
[EventDate "2024.05.30"]
[EventType "team-tourn"]
[EventCountry "GER"]
[SourceTitle "playchess.com"]
[Source "ChessBase"]
[SourceQuality "1"]
[TimeControl "40/5400+30:1800+30"]

1. e4 {[%emt 0:00:02]} c5 {[%emt 0:00:07]} 2. Nf3 {[%emt 0:00:09]} Nc6 {[%emt 0:00:09]} 3. d4 {[%emt 0:00:06]} cxd4 {[%emt 0:00:04]} 4. Nxd4 {[%emt 0:00:05]} e5 {[%emt 0:00:04]} 5. Nb5 {[%emt 0:00:23]} d6 {[%emt 0:00:06]} 6. N1c3 {[%emt 0:00:28]} a6 {[%emt 0:00:14]} 7. Na3 {[%emt 0:00:05]} Be6 {[%emt 0:00:21]} 8. Nc4 {[%emt 0:03:01]} Rb8 {[%emt 0:00:08]} 9. Ne3 {[%emt 0:01:12]} Nf6 {[%emt 0:01:07]} 10. Bd3 {[%emt 0:22:32]} g6 {[%emt 0:03:57]} 11. O-O {[%emt 0:00:29]} Bg7 {[%emt 0:00:07]} 12. Ned5 {[%emt 0:03:32]} Bxd5 {[%emt 0:02:09]} 13. Nxd5 {[%emt 0:07:49]} Nxd5 {[%emt 0:01:26]} 14. exd5 {[%emt 0:00:04]} Ne7 {[%emt 0:00:59]} 15. f4 {[%emt 0:08:35]} exf4 {[%emt 0:06:18]} 16. Rxf4 {[%emt 0:08:48]} O-O {[%emt 0:02:24]} 17. Qf3 {[%emt 0:01:49]} Qa5 {[%emt 0:06:11]} 18. c4 {[%emt 0:01:18]} f5 {[%emt 0:02:15]} 19. Qe2 {[%emt 0:01:13]} Rbe8 {[%emt 0:01:04]} 20. Bd2 {[%emt 0:03:38]} Qb6+ {[%emt 0:03:37]} 21. Qf2 {[%emt 0:07:06]} Qxf2+ {[%emt 0:02:42]} 22. Kxf2 {[%emt 0:01:10]} g5 {[%emt 0:02:20]} 23. Rf3 {[%emt 0:00:41]} g4 {[%emt 0:01:11]} 24. Rf4 {[%emt 0:04:21]} Ng6 {[%emt 0:01:51]} 25. Rb1 {[%emt 0:07:57]} Be5 {[%emt 0:04:01]} 26. g3 {[%emt 0:00:14]} Kg7 {[%emt 0:03:49]} 27. b4 {[%emt 0:01:31]} Nxf4 {[%emt 0:00:33]} 28. gxf4 {[%emt 0:00:05]} Bd4+ {[%emt 0:00:05]} 29. Kg3 {[%emt 0:00:40]} Kg6 {[%emt 0:00:44]} 30. h3 {[%emt 0:02:09]} h5 {[%emt 0:00:06]} 31. h4 {[%emt 0:01:06]} Rf7 {[%emt 0:00:22]} 32. Re1 {[%emt 0:03:45]} Rxe1 {[%emt 0:02:23]} 33. Bxe1 {[%emt 0:00:08]} Re7 {[%emt 0:00:01]} 34. Bd2 {[%emt 0:00:10]} Be3 {[%emt 0:00:48]} 35. Bc3 {[%emt 0:00:11]} Bc1 {[%emt 0:01:05]} 36. Bd4 {[%emt 0:02:17]} Ba3 {[%emt 0:05:54]} 37. c5 {[%emt 0:02:41]} Bxb4 {[%emt 0:00:30]} 38. c6 {[%emt 0:00:08]} bxc6 {[%emt 0:00:43]} 39. dxc6 {[%emt 0:00:08]} Rc7 {[%emt 0:01:44]} 40. Bxa6 {[%emt 0:00:07]} Rxc6 {[%emt 0:00:08]} 41. Bb5 {[%emt 0:30:11]} Rc2 {[%emt 0:30:41]} 42. Be8+ {[%emt 0:01:17]} Kh6 {[%emt 0:00:07]} 43. Bf2 {[%emt 0:00:40]} Rxa2 {[%emt 0:00:12]} 44. Bd7 {[%emt 0:00:07]} Bd2 {[%emt 0:00:43]} 0-1

[Event "DFMMLV 2024"]
[Site "Braunfels"]
[Date "2024.05.31"]
[Round "3.10"]
[White "Kulovana, Eva"]
[Black "Ries, Jutta"]
[Result "1/2-1/2"]
[ECO "B03"]
[WhiteElo "2165"]
[BlackElo "2025"]
[Annotator "RC"]
[PlyCount "92"]
[EventDate "2024.05.30"]
[EventType "team-tourn"]
[EventCountry "GER"]
[SourceTitle "playchess.com"]
[Source "ChessBase"]
[SourceQuality "1"]
[TimeControl "40/5400+30:1800+30"]

1. e4 {[%emt 0:00:04]} Nf6 {[%emt 0:00:07]} 2. e5 {[%emt 0:00:07]} Nd5 {[%emt 0:00:04]} 3. d4 {[%emt 0:00:07]} d6 {[%emt 0:00:05]} 4. c4 {[%emt 0:00:07]} Nb6 {[%emt 0:00:04]} 5. exd6 {[%emt 0:00:08]} exd6 {[%emt 0:00:46]} 6. Nc3 {[%emt 0:01:02]} Bf5 {[%emt 0:00:50]} 7. Nf3 {[%emt 0:05:12]} Be7 {[%emt 0:00:18]} 8. Be2 {[%emt 0:00:23]} O-O {[%emt 0:00:21]} 9. O-O {[%emt 0:00:20]} Re8 {[%emt 0:01:52]} 10. Be3 {[%emt 0:04:02]} Nc6 {[%emt 0:06:11]} 11. b3 {[%emt 0:06:17]} Bf6 {[%emt 0:06:54]} 12. Qd2 {[%emt 0:03:53]} h6 {[%emt 0:08:21]} 13. h3 {[%emt 0:00:24]} d5 {[%emt 0:02:12]} 14. c5 {[%emt 0:05:32]} Nc8 {[%emt 0:00:15]} 15. a3 {[%emt 0:24:33]} N8e7 {[%emt 0:12:21]} 16. b4 {[%emt 0:01:23]} a6 {[%emt 0:01:26]} 17. g4 {[%emt 0:12:32]} Be4 {[%emt 0:02:10]} 18. Rfd1 {[%emt 0:01:45]} Ng6 {[%emt 0:05:01]} 19. Ne1 {[%emt 0:04:05]} Nf8 {[%emt 0:01:55]} 20. Rac1 {[%emt 0:08:45]} Bg5 {[%emt 0:10:27]} 21. f4 {[%emt 0:12:02]} Bh4 {[%emt 0:02:21]} 22. Nxe4 {[%emt 0:00:25]} Bxe1 {[%emt 0:02:44]} 23. Rxe1 {[%emt 0:00:57]} Rxe4 {[%emt 0:01:08]} 24. Bf3 {[%emt 0:00:54]} Re8 {[%emt 0:02:05]} 25. Bf2 {[%emt 0:03:02]} Qd7 {[%emt 0:08:05]} 26. f5 {[%emt 0:01:19]} Nh7 {[%emt 0:01:19]} 27. Qf4 {[%emt 0:02:02]} Ng5 {[%emt 0:14:14]} 28. Bg2 {[%emt 0:00:26]} Rad8 {[%emt 0:02:17]} 29. Bg3 {[%emt 0:01:44]} Ne4 {[%emt 0:06:04]} 30. Qxc7 {[%emt 0:01:10]} Nxg3 {[%emt 0:00:42]} 31. Qxg3 {[%emt 0:00:22]} Nxd4 {[%emt 0:00:02]} 32. Qd3 {[%emt 0:00:30]} Rxe1+ {[%emt 0:01:33]} 33. Rxe1 {[%emt 0:00:06]} Nb5 {[%emt 0:00:25]} 34. a4 {[%emt 0:01:08]} Nc7 {[%emt 0:01:22]} 35. Qb3 {[%emt 0:00:27]} Qc6 {[%emt 0:01:13]} 36. Rc1 {[%emt 0:00:19]} Qf6 {[%emt 0:00:15]} 37. b5 {[%emt 0:00:31]} axb5 {[%emt 0:00:36]} 38. axb5 {[%emt 0:00:06]} Ra8 {[%emt 0:00:50]} 39. b6 {[%emt 0:00:32]} Qd4+ {[%emt 0:00:26]} 40. Kh1 {[%emt 0:00:36]} Ra1 {[%emt 0:00:36]} 41. Rxa1 {[%emt 0:11:29]} Qxa1+ {[%emt 0:00:43]} 42. Kh2 {[%emt 0:01:06]} Qe5+ {[%emt 0:09:30]} 43. Qg3 {[%emt 0:03:01]} Qxg3+ {[%emt 0:00:52]} 44. Kxg3 {[%emt 0:00:08]} Na6 {[%emt 0:00:10]} 45. Bxd5 {[%emt 0:02:03]} Nxc5 {[%emt 0:00:03]} 46. Kf4 {[%emt 0:05:11]} Kf8 {[%emt 0:22:15]} 1/2-1/2